[Event "Titled Tuesday Blitz June 27 Early 2023"]
[White "Zavgorodniy, Sergiy"]
[Black "Nithyalakshmi, Sivanesan"]
[WhiteFideId "14110148"]
[BlackFideId "5706955"]
[WhiteElo "2578"]
[BlackElo "2358"]
[Result "1-0"]
[Round "3"]
[TimeControl "180+2"]
[Date "2023.06.27"]
[WhiteClock "0:01:57"]
[BlackClock "0:00:18"]
[Board "153"]

1. d4 {[%clk 0:02:54]}  Nf6 {[%clk 0:02:57]} 2. c4 {[%clk 0:02:53]}  g6 {[%clk 0:02:57]} 3. Nc3 {[%clk 0:02:49]}  d5 {[%clk 0:02:57]} 4. cxd5 {[%clk 0:02:50]}  Nxd5 {[%clk 0:02:57]} 5. e4 {[%clk 0:02:51]}  Nxc3 {[%clk 0:02:57]} 6. bxc3 {[%clk 0:02:52]}  Bg7 {[%clk 0:02:57]} 7. Nf3 {[%clk 0:02:53]}  c5 {[%clk 0:02:58]} 8. Be3 {[%clk 0:02:54]}  Nc6 {[%clk 0:02:57]} 9. Qd2 {[%clk 0:02:54]}  Bg4 {[%clk 0:02:53]} 10. d5 {[%clk 0:02:50]}  Bxf3 {[%clk 0:02:36]} 11. gxf3 {[%clk 0:02:51]}  Ne5 {[%clk 0:02:33]} 12. Be2 {[%clk 0:02:51]}  b6 {[%clk 0:02:31]} 13. f4 {[%clk 0:02:50]}  Nd7 {[%clk 0:02:27]} 14. e5 {[%clk 0:02:50]}  O-O {[%clk 0:02:23]} 15. c4 {[%clk 0:02:50]}  e6 {[%clk 0:01:47]} 16. Rd1 {[%clk 0:02:45]}  exd5 {[%clk 0:01:42]} 17. cxd5 {[%clk 0:02:46]}  Qe7 {[%clk 0:01:34]} 18. O-O {[%clk 0:02:45]}  g5 {[%clk 0:01:28]} 19. fxg5 {[%clk 0:02:42]}  Nxe5 {[%clk 0:01:25]} 20. f4 {[%clk 0:02:41]}  Nd7 {[%clk 0:01:22]} 21. Rfe1 {[%clk 0:02:36]}  Rfe8 {[%clk 0:01:18]} 22. Bf2 {[%clk 0:02:34]}  Qd6 {[%clk 0:01:16]} 23. Bb5 {[%clk 0:02:29]}  f6 {[%clk 0:01:12]} 24. Re6 {[%clk 0:02:22]}  Qc7 {[%clk 0:01:04]} 25. d6 {[%clk 0:02:19]}  Qb7 {[%clk 0:01:01]} 26. Re7 {[%clk 0:02:14]}  Rad8 {[%clk 0:00:43]} 27. Bxd7 {[%clk 0:02:10]}  Rxd7 {[%clk 0:00:33]} 28. Rxe8+ {[%clk 0:02:10]}  Kf7 {[%clk 0:00:33]} 29. Re7+ {[%clk 0:02:06]}  Rxe7 {[%clk 0:00:33]} 30. dxe7 {[%clk 0:02:07]}  Qxe7 {[%clk 0:00:31]} 31. Qd7 {[%clk 0:02:07]}  fxg5 {[%clk 0:00:28]} 32. Qxe7+ {[%clk 0:02:05]}  Kxe7 {[%clk 0:00:29]} 33. fxg5 {[%clk 0:02:05]}  Ke6 {[%clk 0:00:28]} 34. h4 {[%clk 0:02:04]}  Be5 {[%clk 0:00:24]} 35. h5 {[%clk 0:02:01]}  Kf5 {[%clk 0:00:24]} 36. Rd5 {[%clk 0:01:59]}  Ke4 {[%clk 0:00:23]} 37. Rd7 {[%clk 0:01:57]}  Bf4 {[%clk 0:00:23]} 38. g6 {[%clk 0:01:56]}  hxg6 {[%clk 0:00:18]} 39. hxg6 {[%clk 0:01:57]} 1-0


[Site "https://www.chess.com"]

[Event "Titled Tuesday Blitz June 27 Early 2023"]
[White "K2JW"]
[Black "Alvarado Diaz, Alejandro"]
[BlackFideId "2276119"]
[WhiteElo "2348"]
[BlackElo "2570"]
[Result "1-0"]
[Round "3"]
[TimeControl "180+2"]
[Date "2023.06.27"]
[WhiteClock "0:00:18"]
[BlackClock "0:00:00"]
[Board "157"]

1. e4 {[%clk 0:03:00]}  c5 {[%clk 0:02:59]} 2. Ne2 {[%clk 0:02:57]}  d5 {[%clk 0:02:58]} 3. exd5 {[%clk 0:02:53]}  Qxd5 {[%clk 0:02:59]} 4. d4 {[%clk 0:02:41]}  cxd4 {[%clk 0:02:54]} 5. Nbc3 {[%clk 0:02:39]}  Qa5 {[%clk 0:02:43]} 6. Nxd4 {[%clk 0:02:38]}  Nf6 {[%clk 0:02:33]} 7. Bf4 {[%clk 0:02:16]}  a6 {[%clk 0:02:23]} 8. Bd3 {[%clk 0:01:38]}  g6 {[%clk 0:02:19]} 9. O-O {[%clk 0:01:35]}  Bg7 {[%clk 0:02:19]} 10. Nb3 {[%clk 0:01:32]}  Qd8 {[%clk 0:02:14]} 11. Qe2 {[%clk 0:00:55]}  O-O {[%clk 0:02:11]} 12. Rad1 {[%clk 0:00:54]}  Qe8 {[%clk 0:01:56]} 13. Rfe1 {[%clk 0:00:51]}  Nc6 {[%clk 0:01:52]} 14. Na4 {[%clk 0:00:46]}  Bg4 {[%clk 0:01:49]} 15. f3 {[%clk 0:00:46]}  Be6 {[%clk 0:01:47]} 16. Nbc5 {[%clk 0:00:38]}  Bc8 {[%clk 0:01:38]} 17. Nb6 {[%clk 0:00:37]}  Ra7 {[%clk 0:01:23]} 18. Qf2 {[%clk 0:00:31]}  Qd8 {[%clk 0:01:01]} 19. Nb3 {[%clk 0:00:22]}  Be6 {[%clk 0:00:51]} 20. Bxg6 {[%clk 0:00:21]}  Qe8 {[%clk 0:00:39]} 21. Rxe6 {[%clk 0:00:20]}  hxg6 {[%clk 0:00:37]} 22. Re2 {[%clk 0:00:21]}  e5 {[%clk 0:00:28]} 23. Be3 {[%clk 0:00:20]}  Ra8 {[%clk 0:00:16]} 24. Bc5 {[%clk 0:00:20]}  Rb8 {[%clk 0:00:13]} 25. Bxf8 {[%clk 0:00:19]}  Qxf8 {[%clk 0:00:13]} 26. Nd7 {[%clk 0:00:20]}  Nxd7 {[%clk 0:00:12]} 27. Rxd7 {[%clk 0:00:21]}  Nd4 {[%clk 0:00:11]} 28. Nxd4 {[%clk 0:00:21]}  exd4 {[%clk 0:00:12]} 29. Ree7 {[%clk 0:00:20]}  Rd8 {[%clk 0:00:10]} 30. Rxf7 {[%clk 0:00:18]}  Qxf7 {[%clk 0:00:08]} 31. Rxf7 {[%clk 0:00:18]}  Kxf7 {[%clk 0:00:09]} 32. Qg3 {[%clk 0:00:19]}  Rd7 {[%clk 0:00:08]} 33. Qg4 {[%clk 0:00:19]}  Re7 {[%clk 0:00:07]} 34. Qf4+ {[%clk 0:00:20]}  Kg8 {[%clk 0:00:07]} 35. Kf2 {[%clk 0:00:19]}  Rf7 {[%clk 0:00:05]} 36. Qd6 {[%clk 0:00:18]}  Bf8 {[%clk 0:00:00]} 37. Qxg6+ {[%clk 0:00:18]} 1-0


[Site "https://www.chess.com"]

[Event "Titled Tuesday Blitz June 27 Early 2023"]
[White "Biriukov, Ilja"]
[Black "WindWhistler11"]
[WhiteFideId "4113373"]
[WhiteElo "2318"]
[BlackElo "2569"]
[Result "0-1"]
[Round "3"]
[TimeControl "180+2"]
[Date "2023.06.27"]
[WhiteClock "0:00:20"]
[BlackClock "0:01:09"]
[Board "159"]

1. c4 {[%clk 0:03:00]}  f5 {[%clk 0:02:55]} 2. Nc3 {[%clk 0:03:01]}  Nf6 {[%clk 0:02:56]} 3. g3 {[%clk 0:03:01]}  g6 {[%clk 0:02:55]} 4. Bg2 {[%clk 0:03:01]}  Bg7 {[%clk 0:02:56]} 5. e3 {[%clk 0:03:01]}  O-O {[%clk 0:02:57]} 6. Nge2 {[%clk 0:03:01]}  d6 {[%clk 0:02:57]} 7. d4 {[%clk 0:03:01]}  c6 {[%clk 0:02:57]} 8. O-O {[%clk 0:03:00]}  Na6 {[%clk 0:02:57]} 9. b3 {[%clk 0:02:58]}  Qe8 {[%clk 0:02:48]} 10. Bb2 {[%clk 0:02:58]}  e5 {[%clk 0:02:47]} 11. dxe5 {[%clk 0:02:47]}  dxe5 {[%clk 0:02:48]} 12. Ba3 {[%clk 0:02:40]}  Rf7 {[%clk 0:02:47]} 13. Qc2 {[%clk 0:02:40]}  h5 {[%clk 0:02:36]} 14. Rad1 {[%clk 0:02:38]}  h4 {[%clk 0:02:34]} 15. Rd2 {[%clk 0:02:32]}  Be6 {[%clk 0:02:17]} 16. Rfd1 {[%clk 0:02:30]}  Rc8 {[%clk 0:02:12]} 17. Bd6 {[%clk 0:02:23]}  Ng4 {[%clk 0:02:05]} 18. h3 {[%clk 0:02:10]}  Nh6 {[%clk 0:02:03]} 19. a3 {[%clk 0:01:59]}  hxg3 {[%clk 0:02:00]} 20. fxg3 {[%clk 0:01:58]}  g5 {[%clk 0:01:54]} 21. Kh2 {[%clk 0:01:46]}  Rd7 {[%clk 0:01:43]} 22. Ng1 {[%clk 0:01:33]}  Qh5 {[%clk 0:01:37]} 23. Bf3 {[%clk 0:01:08]}  g4 {[%clk 0:01:31]} 24. Bg2 {[%clk 0:01:07]}  gxh3 {[%clk 0:01:26]} 25. Nxh3 {[%clk 0:00:58]}  Ng4+ {[%clk 0:01:26]} 26. Kg1 {[%clk 0:00:56]}  Nxe3 {[%clk 0:01:26]} 27. Qd3 {[%clk 0:00:42]}  Nxd1 {[%clk 0:01:20]} 28. Nxd1 {[%clk 0:00:42]}  Rcd8 {[%clk 0:01:18]} 29. c5 {[%clk 0:00:41]}  Nxc5 {[%clk 0:01:17]} 30. Qc3 {[%clk 0:00:34]}  Rxd6 {[%clk 0:01:14]} 31. Rxd6 {[%clk 0:00:31]}  Rxd6 {[%clk 0:01:15]} 32. Ne3 {[%clk 0:00:20]}  Nd3 {[%clk 0:01:09]} 0-1


[Site "https://www.chess.com"]

[Event "Titled Tuesday Blitz June 27 Early 2023"]
[White "Sreyas Payyappat"]
[Black "Antonio, Jorge Carlos"]
[WhiteFideId "46674969"]
[BlackFideId "113190"]
[WhiteElo "2568"]
[BlackElo "2291"]
[Result "1-0"]
[Round "3"]
[TimeControl "180+2"]
[Date "2023.06.27"]
[WhiteClock "0:00:05"]
[BlackClock "0:00:00"]
[Board "162"]

1. e4 {[%clk 0:03:00]}  c5 {[%clk 0:02:59]} 2. Nf3 {[%clk 0:03:00]}  e6 {[%clk 0:02:59]} 3. d4 {[%clk 0:02:59]}  cxd4 {[%clk 0:02:59]} 4. Nxd4 {[%clk 0:03:00]}  a6 {[%clk 0:02:59]} 5. Nc3 {[%clk 0:03:01]}  Nc6 {[%clk 0:02:58]} 6. Be3 {[%clk 0:03:00]}  Qc7 {[%clk 0:02:58]} 7. Bd3 {[%clk 0:02:59]}  Nf6 {[%clk 0:02:58]} 8. O-O {[%clk 0:02:57]}  Bb4 {[%clk 0:02:59]} 9. f4 {[%clk 0:02:54]}  O-O {[%clk 0:02:53]} 10. e5 {[%clk 0:02:29]}  Bxc3 {[%clk 0:02:39]} 11. bxc3 {[%clk 0:02:25]}  Nd5 {[%clk 0:02:36]} 12. Rf3 {[%clk 0:02:23]}  Nxc3 {[%clk 0:02:23]} 13. Bxh7+ {[%clk 0:02:11]}  Kxh7 {[%clk 0:02:20]} 14. Qd3+ {[%clk 0:01:32]}  g6 {[%clk 0:00:55]} 15. Qxc3 {[%clk 0:00:52]}  Qa5 {[%clk 0:00:53]} 16. Qd3 {[%clk 0:00:47]}  Rh8 {[%clk 0:00:47]} 17. Nxc6 {[%clk 0:00:19]}  bxc6 {[%clk 0:00:41]} 18. g4 {[%clk 0:00:16]}  Qd5 {[%clk 0:00:28]} 19. Qxd5 {[%clk 0:00:13]}  cxd5 {[%clk 0:00:27]} 20. f5 {[%clk 0:00:14]}  d4 {[%clk 0:00:19]} 21. Bxd4 {[%clk 0:00:12]}  Bb7 {[%clk 0:00:18]} 22. Rf2 {[%clk 0:00:12]}  gxf5 {[%clk 0:00:14]} 23. gxf5 {[%clk 0:00:13]}  Rhg8+ {[%clk 0:00:14]} 24. Kf1 {[%clk 0:00:13]}  Rg4 {[%clk 0:00:07]} 25. c3 {[%clk 0:00:13]}  Rag8 {[%clk 0:00:06]} 26. Ke2 {[%clk 0:00:11]}  Rg2 {[%clk 0:00:05]} 27. Rf1 {[%clk 0:00:11]}  Rxf2+ {[%clk 0:00:05]} 28. Rxf2 {[%clk 0:00:12]}  Rg2 {[%clk 0:00:04]} 29. f6 {[%clk 0:00:08]}  Rxf2+ {[%clk 0:00:03]} 30. Kxf2 {[%clk 0:00:09]}  Kg6 {[%clk 0:00:03]} 31. Ke3 {[%clk 0:00:09]}  Kh5 {[%clk 0:00:03]} 32. Kf4 {[%clk 0:00:07]}  Bc6 {[%clk 0:00:03]} 33. Bf2 {[%clk 0:00:07]}  Bd5 {[%clk 0:00:00]} 34. a4 {[%clk 0:00:05]} 1-0


[Site "https://www.chess.com"]

[Event "Titled Tuesday Blitz June 27 Early 2023"]
[White "Georg, Heinz"]
[Black "Janaszak, Dawid"]
[WhiteFideId "4607295"]
[BlackFideId "1119206"]
[WhiteElo "2291"]
[BlackElo "2566"]
[Result "0-1"]
[Round "3"]
[TimeControl "180+2"]
[Date "2023.06.27"]
[WhiteClock "0:00:00"]
[BlackClock "0:01:24"]
[Board "163"]

1. e4 {[%clk 0:03:00]}  d5 {[%clk 0:02:58]} 2. exd5 {[%clk 0:03:00]}  Qxd5 {[%clk 0:02:59]} 3. c4 {[%clk 0:03:00]}  Qa5 {[%clk 0:02:57]} 4. Nc3 {[%clk 0:03:00]}  e5 {[%clk 0:02:55]} 5. d4 {[%clk 0:02:56]}  exd4 {[%clk 0:02:47]} 6. Qxd4 {[%clk 0:02:56]}  Nc6 {[%clk 0:02:48]} 7. Qe3+ {[%clk 0:02:51]}  Be6 {[%clk 0:02:45]} 8. Bd3 {[%clk 0:02:50]}  Nf6 {[%clk 0:02:43]} 9. Ne2 {[%clk 0:02:49]}  Bc5 {[%clk 0:02:43]} 10. Qg3 {[%clk 0:02:34]}  O-O-O {[%clk 0:02:31]} 11. O-O {[%clk 0:02:15]}  Nb4 {[%clk 0:02:32]} 12. Be4 {[%clk 0:02:04]}  Bxc4 {[%clk 0:02:20]} 13. Bf3 {[%clk 0:02:04]}  Bd6 {[%clk 0:02:04]} 14. Qh4 {[%clk 0:01:57]}  Bd3 {[%clk 0:01:57]} 15. Be3 {[%clk 0:01:14]}  Nc2 {[%clk 0:01:54]} 16. Rac1 {[%clk 0:01:13]}  Nxe3 {[%clk 0:01:53]} 17. fxe3 {[%clk 0:01:13]}  Rhe8 {[%clk 0:01:44]} 18. a3 {[%clk 0:00:36]}  Qb6 {[%clk 0:01:41]} 19. Rfd1 {[%clk 0:00:26]}  Qxe3+ {[%clk 0:01:40]} 20. Kh1 {[%clk 0:00:26]}  g5 {[%clk 0:01:40]} 21. Qa4 {[%clk 0:00:24]}  g4 {[%clk 0:01:34]} 22. Bxb7+ {[%clk 0:00:13]}  Kxb7 {[%clk 0:01:33]} 23. Nb5 {[%clk 0:00:10]}  Bxb5 {[%clk 0:01:25]} 24. Qxb5+ {[%clk 0:00:09]}  Qb6 {[%clk 0:01:25]} 25. Qc4 {[%clk 0:00:02]}  Ne4 {[%clk 0:01:24]} 26. Nd4 {[%clk 0:00:01]}  Nf2+ {[%clk 0:01:24]} 27. Kg1 {[%clk 0:00:00]}  Nxd1 {[%clk 0:01:24]} 0-1


[Site "https://www.chess.com"]

[Event "Titled Tuesday Blitz June 27 Early 2023"]
[White "Arat, Ufuk Sezen"]
[Black "Marchesich, Giovanni"]
[WhiteFideId "6309089"]
[BlackFideId "2824790"]
[WhiteElo "2561"]
[BlackElo "2252"]
[Result "0-1"]
[Round "3"]
[TimeControl "180+2"]
[Date "2023.06.27"]
[WhiteClock "0:00:01"]
[BlackClock "0:00:17"]
[Board "166"]

1. e4 {[%clk 0:03:00]}  e5 {[%clk 0:02:57]} 2. Nf3 {[%clk 0:03:01]}  d5 {[%clk 0:02:58]} 3. exd5 {[%clk 0:03:01]}  e4 {[%clk 0:02:59]} 4. Qe2 {[%clk 0:03:01]}  Nf6 {[%clk 0:02:59]} 5. Nc3 {[%clk 0:03:01]}  Bb4 {[%clk 0:02:57]} 6. Nxe4 {[%clk 0:02:59]}  O-O {[%clk 0:02:57]} 7. Qc4 {[%clk 0:02:32]}  Re8 {[%clk 0:02:48]} 8. Bd3 {[%clk 0:01:50]}  Nxe4 {[%clk 0:02:40]} 9. Bxe4 {[%clk 0:01:50]}  Bf5 {[%clk 0:02:41]} 10. O-O {[%clk 0:01:15]}  Rxe4 {[%clk 0:02:40]} 11. Qb3 {[%clk 0:01:15]}  Na6 {[%clk 0:02:36]} 12. d4 {[%clk 0:01:10]}  Rb8 {[%clk 0:02:22]} 13. Bg5 {[%clk 0:01:08]}  Be7 {[%clk 0:02:15]} 14. Bxe7 {[%clk 0:01:08]}  Qxe7 {[%clk 0:02:16]} 15. Rae1 {[%clk 0:01:08]}  Qd6 {[%clk 0:01:43]} 16. c4 {[%clk 0:01:03]}  c6 {[%clk 0:01:35]} 17. dxc6 {[%clk 0:01:01]}  bxc6 {[%clk 0:01:34]} 18. Qa4 {[%clk 0:00:58]}  c5 {[%clk 0:01:25]} 19. dxc5 {[%clk 0:00:44]}  Nxc5 {[%clk 0:01:22]} 20. Qxa7 {[%clk 0:00:44]}  Qb6 {[%clk 0:01:18]} 21. Qa3 {[%clk 0:00:42]}  h6 {[%clk 0:01:06]} 22. b3 {[%clk 0:00:33]}  Nd3 {[%clk 0:01:02]} 23. Rd1 {[%clk 0:00:32]}  Re2 {[%clk 0:00:59]} 24. Rd2 {[%clk 0:00:25]}  Rxd2 {[%clk 0:00:49]} 25. Nxd2 {[%clk 0:00:25]}  Re8 {[%clk 0:00:50]} 26. Qa4 {[%clk 0:00:08]}  Re1 {[%clk 0:00:45]} 27. Qa8+ {[%clk 0:00:08]}  Kh7 {[%clk 0:00:45]} 28. Qf3 {[%clk 0:00:08]}  Qe6 {[%clk 0:00:36]} 29. h3 {[%clk 0:00:06]}  Nc1 {[%clk 0:00:28]} 30. g4 {[%clk 0:00:04]}  Bd3 {[%clk 0:00:22]} 31. Rxe1 {[%clk 0:00:01]}  Qxe1+ {[%clk 0:00:23]} 32. Kg2 {[%clk 0:00:01]}  Qxd2 {[%clk 0:00:21]} 33. a4 {[%clk 0:00:02]}  Qe1 {[%clk 0:00:16]} 34. c5 {[%clk 0:00:01]}  Be4 {[%clk 0:00:16]} 35. Kg3 {[%clk 0:00:01]}  Bxf3 {[%clk 0:00:17]} 0-1


[Site "https://www.chess.com"]

[Event "Titled Tuesday Blitz June 27 Early 2023"]
[White "SicilianPanzer"]
[Black "Belov, Alexei"]
[BlackFideId "4128206"]
[WhiteElo "2246"]
[BlackElo "2558"]
[Result "1-0"]
[Round "3"]
[TimeControl "180+2"]
[Date "2023.06.27"]
[WhiteClock "0:00:08"]
[BlackClock "0:00:53"]
[Board "167"]

1. e4 {[%clk 0:03:00]}  e6 {[%clk 0:02:58]} 2. d4 {[%clk 0:02:59]}  d5 {[%clk 0:02:57]} 3. Nc3 {[%clk 0:02:59]}  Nf6 {[%clk 0:02:57]} 4. exd5 {[%clk 0:02:58]}  exd5 {[%clk 0:02:56]} 5. Bd3 {[%clk 0:02:58]}  c5 {[%clk 0:02:56]} 6. dxc5 {[%clk 0:02:57]}  Bxc5 {[%clk 0:02:56]} 7. Nf3 {[%clk 0:02:56]}  O-O {[%clk 0:02:55]} 8. O-O {[%clk 0:02:56]}  Nc6 {[%clk 0:02:55]} 9. h3 {[%clk 0:02:54]}  h6 {[%clk 0:02:50]} 10. Bf4 {[%clk 0:02:48]}  Re8 {[%clk 0:02:50]} 11. Nb5 {[%clk 0:02:23]}  Re7 {[%clk 0:02:38]} 12. c3 {[%clk 0:02:07]}  Qb6 {[%clk 0:02:27]} 13. b4 {[%clk 0:01:46]}  Bxf2+ {[%clk 0:02:21]} 14. Rxf2 {[%clk 0:01:46]}  Ne4 {[%clk 0:02:21]} 15. Bxe4 {[%clk 0:01:36]}  dxe4 {[%clk 0:02:16]} 16. Nfd4 {[%clk 0:01:36]}  Ne5 {[%clk 0:01:55]} 17. Bxe5 {[%clk 0:00:50]}  Rxe5 {[%clk 0:01:55]} 18. Qb3 {[%clk 0:00:48]}  Re7 {[%clk 0:01:45]} 19. Raf1 {[%clk 0:00:46]}  Qg6 {[%clk 0:01:44]} 20. Kh2 {[%clk 0:00:21]}  a6 {[%clk 0:01:34]} 21. Na3 {[%clk 0:00:19]}  e3 {[%clk 0:01:26]} 22. Re2 {[%clk 0:00:18]}  Kh7 {[%clk 0:01:18]} 23. Qc2 {[%clk 0:00:14]}  f5 {[%clk 0:01:07]} 24. Nxf5 {[%clk 0:00:13]}  Rf7 {[%clk 0:01:08]} 25. Ng3 {[%clk 0:00:09]}  Rxf1 {[%clk 0:00:58]} 26. Qxg6+ {[%clk 0:00:08]}  Kxg6 {[%clk 0:00:58]} 27. Nxf1 {[%clk 0:00:08]}  Be6 {[%clk 0:00:57]} 28. Rxe3 {[%clk 0:00:08]}  Bxa2 {[%clk 0:00:57]} 29. Nd2 {[%clk 0:00:09]}  Re8 {[%clk 0:00:53]} 30. Rxe8 {[%clk 0:00:08]} 1-0


[Site "https://www.chess.com"]

[Event "Titled Tuesday Blitz June 27 Early 2023"]
[White "Yaksin, Oleg"]
[Black "Vargas Rodriguez, Wilver"]
[WhiteFideId "24105880"]
[BlackFideId "3509672"]
[WhiteElo "2556"]
[BlackElo "2150"]
[Result "1-0"]
[Round "3"]
[TimeControl "180+2"]
[Date "2023.06.27"]
[WhiteClock "0:00:26"]
[BlackClock "0:00:00"]
[Board "172"]

1. d4 {[%clk 0:02:22]}  Nf6 {[%clk 0:02:58]} 2. c4 {[%clk 0:02:22]}  e6 {[%clk 0:02:58]} 3. g3 {[%clk 0:02:22]}  d5 {[%clk 0:02:56]} 4. Nf3 {[%clk 0:02:22]}  dxc4 {[%clk 0:02:56]} 5. Bg2 {[%clk 0:02:22]}  c6 {[%clk 0:02:56]} 6. Ne5 {[%clk 0:02:20]}  Be7 {[%clk 0:02:46]} 7. Nxc4 {[%clk 0:02:19]}  O-O {[%clk 0:02:46]} 8. O-O {[%clk 0:02:19]}  b5 {[%clk 0:02:40]} 9. Ne5 {[%clk 0:02:19]}  Bb7 {[%clk 0:02:40]} 10. Nc3 {[%clk 0:02:15]}  a6 {[%clk 0:02:39]} 11. a4 {[%clk 0:02:13]}  b4 {[%clk 0:02:38]} 12. Ne4 {[%clk 0:02:12]}  Nxe4 {[%clk 0:02:37]} 13. Bxe4 {[%clk 0:02:13]}  a5 {[%clk 0:02:30]} 14. Qc2 {[%clk 0:02:05]}  g6 {[%clk 0:02:01]} 15. Bh6 {[%clk 0:02:01]}  Re8 {[%clk 0:01:56]} 16. Rfd1 {[%clk 0:01:44]}  Qc7 {[%clk 0:01:16]} 17. Rac1 {[%clk 0:01:41]}  Rc8 {[%clk 0:01:11]} 18. Nxg6 {[%clk 0:01:32]}  fxg6 {[%clk 0:01:01]} 19. Bxg6 {[%clk 0:01:32]}  Bf6 {[%clk 0:00:58]} 20. Bf4 {[%clk 0:01:10]}  Qg7 {[%clk 0:00:57]} 21. Be4 {[%clk 0:01:05]}  Nd7 {[%clk 0:00:56]} 22. Qd3 {[%clk 0:01:04]}  Nb6 {[%clk 0:00:54]} 23. Rc5 {[%clk 0:00:55]}  Nd5 {[%clk 0:00:49]} 24. Bc1 {[%clk 0:00:39]}  Ba6 {[%clk 0:00:47]} 25. Qc2 {[%clk 0:00:36]}  Bxd4 {[%clk 0:00:42]} 26. Rxc6 {[%clk 0:00:33]}  Rxc6 {[%clk 0:00:40]} 27. Qxc6 {[%clk 0:00:34]}  Nc7 {[%clk 0:00:02]} 28. Bf4 {[%clk 0:00:26]}  e5 {[%clk 0:00:00]} 29. Bh6 {[%clk 0:00:26]} 1-0


[Site "https://www.chess.com"]

[Event "Titled Tuesday Blitz June 27 Early 2023"]
[White "Ho, In Hei Henry"]
[Black "Fonseca Manrique, Enrique"]
[WhiteFideId "6002552"]
[BlackFideId "5114330"]
[WhiteElo "2022"]
[BlackElo "2554"]
[Result "0-1"]
[Round "3"]
[TimeControl "180+2"]
[Date "2023.06.27"]
[WhiteClock "0:00:16"]
[BlackClock "0:00:04"]
[Board "173"]

1. d4 {[%clk 0:03:00]}  Nf6 {[%clk 0:02:59]} 2. Nf3 {[%clk 0:03:01]}  g6 {[%clk 0:02:59]} 3. Bf4 {[%clk 0:03:01]}  Bg7 {[%clk 0:02:59]} 4. e3 {[%clk 0:03:01]}  O-O {[%clk 0:02:59]} 5. Bd3 {[%clk 0:03:01]}  c5 {[%clk 0:02:59]} 6. c3 {[%clk 0:03:01]}  Qb6 {[%clk 0:02:58]} 7. Qc2 {[%clk 0:03:00]}  d6 {[%clk 0:02:53]} 8. O-O {[%clk 0:03:00]}  cxd4 {[%clk 0:02:49]} 9. exd4 {[%clk 0:02:59]}  Nc6 {[%clk 0:02:43]} 10. Nbd2 {[%clk 0:02:59]}  Be6 {[%clk 0:02:16]} 11. Rfe1 {[%clk 0:02:56]}  Rac8 {[%clk 0:02:15]} 12. Qb1 {[%clk 0:02:52]}  Bd5 {[%clk 0:01:49]} 13. h3 {[%clk 0:02:40]}  Rfe8 {[%clk 0:01:44]} 14. Nc4 {[%clk 0:02:06]}  Qd8 {[%clk 0:01:41]} 15. Ncd2 {[%clk 0:02:03]}  Na5 {[%clk 0:01:35]} 16. Qd1 {[%clk 0:01:57]}  Nc4 {[%clk 0:01:34]} 17. Nxc4 {[%clk 0:01:54]}  Bxc4 {[%clk 0:01:34]} 18. Bxc4 {[%clk 0:01:53]}  Rxc4 {[%clk 0:01:35]} 19. Qd3 {[%clk 0:01:53]}  Qc8 {[%clk 0:01:22]} 20. Re2 {[%clk 0:01:49]}  Nd5 {[%clk 0:01:20]} 21. Bh2 {[%clk 0:01:47]}  b5 {[%clk 0:01:18]} 22. Nd2 {[%clk 0:01:38]}  Rc7 {[%clk 0:01:15]} 23. a3 {[%clk 0:01:36]}  a6 {[%clk 0:01:11]} 24. Rae1 {[%clk 0:01:36]}  Rc6 {[%clk 0:00:39]} 25. Ne4 {[%clk 0:01:34]}  Rf8 {[%clk 0:00:34]} 26. Ng5 {[%clk 0:01:28]}  e6 {[%clk 0:00:20]} 27. Qf3 {[%clk 0:01:25]}  Qd7 {[%clk 0:00:19]} 28. Ne4 {[%clk 0:01:23]}  a5 {[%clk 0:00:19]} 29. Bf4 {[%clk 0:01:10]}  b4 {[%clk 0:00:18]} 30. Bd2 {[%clk 0:01:05]}  bxc3 {[%clk 0:00:18]} 31. bxc3 {[%clk 0:01:05]}  a4 {[%clk 0:00:19]} 32. Rb1 {[%clk 0:01:03]}  Rfc8 {[%clk 0:00:19]} 33. Ree1 {[%clk 0:00:59]}  Nb6 {[%clk 0:00:16]} 34. Rb4 {[%clk 0:00:50]}  Nd5 {[%clk 0:00:13]} 35. Rxa4 {[%clk 0:00:45]}  Rxc3 {[%clk 0:00:09]} 36. Nxc3 {[%clk 0:00:45]}  Nxc3 {[%clk 0:00:07]} 37. Bxc3 {[%clk 0:00:41]}  Qxa4 {[%clk 0:00:07]} 38. Bb4 {[%clk 0:00:41]}  Qc6 {[%clk 0:00:07]} 39. Qd3 {[%clk 0:00:33]}  Qd5 {[%clk 0:00:06]} 40. Rd1 {[%clk 0:00:31]}  h5 {[%clk 0:00:07]} 41. Qa6 {[%clk 0:00:29]}  Rc6 {[%clk 0:00:06]} 42. Qa8+ {[%clk 0:00:28]}  Kh7 {[%clk 0:00:06]} 43. Qe8 {[%clk 0:00:27]}  Rc7 {[%clk 0:00:05]} 44. Qd8 {[%clk 0:00:26]}  Rc6 {[%clk 0:00:05]} 45. Qe7 {[%clk 0:00:25]}  Qb3 {[%clk 0:00:04]} 46. Re1 {[%clk 0:00:23]}  e5 {[%clk 0:00:04]} 47. dxe5 {[%clk 0:00:20]}  dxe5 {[%clk 0:00:04]} 48. Qxf7 {[%clk 0:00:16]}  Qxf7 {[%clk 0:00:04]} 0-1


[Site "https://www.chess.com"]